[Event "XVI Memorial Lezcano Montalvo 2024"]
[Site "Gran Canaria"]
[Date "2024.03.27"]
[Round "5.9"]
[White "Marrero Rodriguez, Jorge"]
[Black "Sanz Wawer, Daniel"]
[Result "0-1"]
[ECO "B10"]
[WhiteElo "2177"]
[BlackElo "2397"]
[Annotator "RC"]
[PlyCount "66"]
[EventDate "2024.03.23"]
[EventType "swiss"]
[EventCountry "ESP"]
[SourceTitle "playchess.com"]
[Source "ChessBase"]
[SourceQuality "1"]
[TimeControl "5400+30"]

1. e4 {[%emt 0:00:18]} c6 {[%emt 0:00:06]} 2. Nf3 {[%emt 0:00:32]} d5 {[%emt 0:00:14]} 3. d3 {[%emt 0:00:22]} dxe4 {[%emt 0:02:22]} 4. dxe4 {[%emt 0:00:05]} Qxd1+ {[%emt 0:00:05]} 5. Kxd1 {[%emt 0:00:06]} Nf6 {[%emt 0:00:23]} 6. Nfd2 {[%emt 0:00:06]} g5 {[%emt 0:01:22]} 7. a4 {[%emt 0:01:48]} Bg7 {[%emt 0:02:24]} 8. c3 {[%emt 0:12:52]} Nbd7 {[%emt 0:00:54]} 9. Kc2 {[%emt 0:05:51]} Ng4 {[%emt 0:09:56]} 10. Be2 {[%emt 0:14:14]} Nc5 {[%emt 0:00:18]} 11. Bxg4 {[%emt 0:04:29]} Bxg4 {[%emt 0:00:12]} 12. f3 {[%emt 0:05:01]} Be6 {[%emt 0:00:06]} 13. b4 {[%emt 0:01:10]} Na6 {[%emt 0:07:04]} 14. Ra3 {[%emt 0:03:39]} O-O-O {[%emt 0:03:12]} 15. Nf1 {[%emt 0:11:06]} g4 {[%emt 0:02:32]} 16. Be3 {[%emt 0:01:29]} gxf3 {[%emt 0:03:52]} 17. gxf3 {[%emt 0:00:05]} Bc4 {[%emt 0:02:49]} 18. Nbd2 {[%emt 0:00:17]} Bd3+ {[%emt 0:05:41]} 19. Kc1 {[%emt 0:00:21]} Bxf1 {[%emt 0:01:45]} 20. Nxf1 {[%emt 0:08:03]} Rd3 {[%emt 0:02:02]} 21. Kc2 {[%emt 0:06:39]} Nxb4+ {[%emt 0:03:02]} 22. Kc1 {[%emt 0:02:27]} Bxc3 {[%emt 0:06:08]} 23. Bc5 {[%emt 0:01:56]} Rhd8 {[%emt 0:01:56]} 24. Ng3 {[%emt 0:00:53]} Rd2 {[%emt 0:06:28]} 25. Rb3 {[%emt 0:02:00]} Nd3+ {[%emt 0:03:40]} 26. Kb1 {[%emt 0:00:06]} Nxc5 {[%emt 0:00:15]} 27. Rxc3 {[%emt 0:00:03]} Nxa4 {[%emt 0:00:17]} 28. Ra3 {[%emt 0:00:01]} b5 {[%emt 0:00:36]} 29. Rc1 {[%emt 0:00:03]} Kb7 {[%emt 0:00:28]} 30. Nf5 {[%emt 0:00:19]} e6 {[%emt 0:00:38]} 31. Ne7 {[%emt 0:00:22]} c5 {[%emt 0:00:52]} 32. Rb3 {[%emt 0:00:08]} b4 {[%emt 0:00:41]} 33. e5 {[%emt 0:01:04]} R2d7 {[%emt 0:00:41]} 0-1

[Event "XVI Memorial Lezcano Montalvo 2024"]
[Site "Gran Canaria"]
[Date "2024.03.27"]
[Round "5.10"]
[White "Barlov, Dragan"]
[Black "Hernandez Leon, Sergio"]
[Result "1-0"]
[ECO "C60"]
[WhiteElo "2387"]
[BlackElo "2172"]
[Annotator "RC"]
[PlyCount "97"]
[EventDate "2024.03.23"]
[EventType "swiss"]
[EventCountry "ESP"]
[SourceTitle "playchess.com"]
[Source "ChessBase"]
[SourceQuality "1"]
[TimeControl "5400+30"]

1. e4 {[%emt 0:00:29]} e5 {[%emt 0:00:31]} 2. Nf3 {[%emt 0:00:37]} Nc6 {[%emt 0:00:12]} 3. Bb5 {[%emt 0:00:08]} g6 {[%emt 0:01:13]} 4. O-O {[%emt 0:04:01]} Bg7 {[%emt 0:00:39]} 5. c3 {[%emt 0:00:18]} d6 {[%emt 0:02:46]} 6. d4 {[%emt 0:01:30]} Bd7 {[%emt 0:00:15]} 7. Be3 {[%emt 0:10:15]} Nf6 {[%emt 0:08:12]} 8. dxe5 {[%emt 0:21:05]} Nxe5 {[%emt 0:13:45]} 9. Nxe5 {[%emt 0:08:51]} dxe5 {[%emt 0:01:59]} 10. Bxd7+ {[%emt 0:01:11]} Qxd7 {[%emt 0:00:35]} 11. Qb3 {[%emt 0:02:29]} O-O {[%emt 0:17:56]} 12. Rd1 {[%emt 0:09:20]} Qc6 {[%emt 0:07:55]} 13. f3 {[%emt 0:00:19]} Rfd8 {[%emt 0:13:53]} 14. Na3 {[%emt 0:14:31]} b6 {[%emt 0:10:36]} 15. Qc4 {[%emt 0:09:52]} Qxc4 {[%emt 0:04:56]} 16. Nxc4 {[%emt 0:00:04]} Ne8 {[%emt 0:00:09]} 17. Kf1 {[%emt 0:04:41]} Kf8 {[%emt 0:00:13]} 18. Ke2 {[%emt 0:00:22]} Ke7 {[%emt 0:01:20]} 19. a4 {[%emt 0:03:57]} Rxd1 {[%emt 0:03:03]} 20. Rxd1 {[%emt 0:00:03]} Rd8 {[%emt 0:01:36]} 21. Ra1 {[%emt 0:00:14]} Ke6 {[%emt 0:03:08]} 22. g4 {[%emt 0:00:33]} Nd6 {[%emt 0:00:54]} 23. Nxd6 {[%emt 0:01:28]} Kxd6 {[%emt 0:02:47]} 24. h4 {[%emt 0:00:53]} h6 {[%emt 0:00:12]} 25. b4 {[%emt 0:01:34]} Bf6 {[%emt 0:01:39]} 26. Rh1 {[%emt 0:00:34]} Bg7 {[%emt 0:00:20]} 27. h5 {[%emt 0:02:31]} g5 {[%emt 0:00:09]} 28. Rd1+ {[%emt 0:00:25]} Ke7 {[%emt 0:00:05]} 29. Ra1 {[%emt 0:00:20]} Kd7 {[%emt 0:01:47]} 30. a5 {[%emt 0:00:46]} Kc8 {[%emt 0:01:10]} 31. axb6 {[%emt 0:01:25]} axb6 {[%emt 0:00:09]} 32. Ra8+ {[%emt 0:01:08]} Kd7 {[%emt 0:00:05]} 33. Ra7 {[%emt 0:00:32]} Rb8 {[%emt 0:00:04]} 34. Kd3 {[%emt 0:00:26]} Kc6 {[%emt 0:01:56]} 35. b5+ {[%emt 0:00:25]} Kd7 {[%emt 0:01:09]} 36. Kc4 {[%emt 0:00:10]} Bf8 {[%emt 0:00:16]} 37. Kd5 {[%emt 0:00:23]} f6 {[%emt 0:00:39]} 38. c4 {[%emt 0:01:06]} Be7 {[%emt 0:00:38]} 39. c5 {[%emt 0:00:30]} bxc5 {[%emt 0:00:14]} 40. Kc4 {[%emt 0:00:03]} Rb6 {[%emt 0:00:46]} 41. Ra8 {[%emt 0:00:15]} Bd8 {[%emt 0:00:35]} 42. Bxc5 {[%emt 0:00:10]} Re6 {[%emt 0:00:32]} 43. Ra7 {[%emt 0:01:24]} Kc8 {[%emt 0:00:28]} 44. Kd5 {[%emt 0:00:18]} Re8 {[%emt 0:00:23]} 45. b6 {[%emt 0:00:48]} Kb8 {[%emt 0:00:37]} 46. bxc7+ {[%emt 0:00:19]} Bxc7 {[%emt 0:00:06]} 47. Kc6 {[%emt 0:00:23]} Bd8 {[%emt 0:00:56]} 48. Rh7 {[%emt 0:00:29]} Re6+ {[%emt 0:00:30]} 49. Kd7 {[%emt 0:01:25]} 1-0

[Event "XVI Memorial Lezcano Montalvo 2024"]
[Site "Gran Canaria"]
[Date "2024.03.27"]
[Round "5.11"]
[White "Mendez Acosta, Alexander Jesus"]
[Black "Garcia Blanco, Omar"]
[Result "0-1"]
[ECO "A88"]
[WhiteElo "2025"]
[BlackElo "2377"]
[Annotator "RC"]
[PlyCount "34"]
[EventDate "2024.03.23"]
[EventType "swiss"]
[EventCountry "ESP"]
[SourceTitle "playchess.com"]
[Source "ChessBase"]
[SourceQuality "1"]
[TimeControl "5400+30"]

1. c4 {[%emt 0:00:15]} f5 {[%emt 0:00:45]} 2. Nc3 {[%emt 0:00:30]} Nf6 {[%emt 0:00:19]} 3. g3 {[%emt 0:00:46]} d6 {[%emt 0:01:50]} 4. d4 {[%emt 0:01:01]} g6 {[%emt 0:00:24]} 5. Bg2 {[%emt 0:00:09]} Bg7 {[%emt 0:00:22]} 6. Nf3 {[%emt 0:00:38]} O-O {[%emt 0:00:39]} 7. O-O {[%emt 0:00:55]} c6 {[%emt 0:00:17]} 8. d5 {[%emt 0:01:02]} e5 {[%emt 0:00:13]} 9. dxe6 {[%emt 0:00:18]} Bxe6 {[%emt 0:00:08]} 10. b3 {[%emt 0:00:44]} Na6 {[%emt 0:00:21]} 11. Nd4 {[%emt 0:09:32]} Bd7 {[%emt 0:03:47]} 12. Bb2 {[%emt 0:00:23]} Qe7 {[%emt 0:00:16]} 13. Qc2 {[%emt 0:06:04]} Rae8 {[%emt 0:03:28]} 14. Rfe1 {[%emt 0:03:39]} Ng4 {[%emt 0:02:01]} 15. Nf3 {[%emt 0:04:43]} Nc5 {[%emt 0:01:25]} 16. h3 {[%emt 0:14:43]} Nxf2 {[%emt 0:04:12]} 17. Kxf2 {[%emt 0:00:19]} Bxc3 {[%emt 0:00:13]} 0-1

[Event "XVI Memorial Lezcano Montalvo 2024"]
[Site "Gran Canaria"]
[Date "2024.03.27"]
[Round "5.12"]
[White "Akhvlediani, Irakli"]
[Black "Cruz Pino, Adrian"]
[Result "1-0"]
[ECO "A22"]
[WhiteElo "2356"]
[BlackElo "2015"]
[Annotator "RC"]
[PlyCount "89"]
[EventDate "2024.03.23"]
[EventType "swiss"]
[EventCountry "ESP"]
[SourceTitle "playchess.com"]
[Source "ChessBase"]
[SourceQuality "1"]
[TimeControl "5400+30"]

1. c4 {[%emt 0:00:02]} Nf6 {[%emt 0:00:20]} 2. Nc3 {[%emt 0:00:11]} e5 {[%emt 0:00:41]} 3. g3 {[%emt 0:00:14]} Bb4 {[%emt 0:00:36]} 4. Bg2 {[%emt 0:00:18]} O-O {[%emt 0:00:13]} 5. e4 {[%emt 0:00:15]} Re8 {[%emt 0:00:25]} 6. Nge2 {[%emt 0:00:11]} d6 {[%emt 0:00:12]} 7. O-O {[%emt 0:00:30]} Nc6 {[%emt 0:00:38]} 8. d3 {[%emt 0:00:59]} a6 {[%emt 0:00:36]} 9. h3 {[%emt 0:06:41]} Bc5 {[%emt 0:00:58]} 10. a3 {[%emt 0:05:25]} Nd4 {[%emt 0:05:17]} 11. b4 {[%emt 0:03:35]} Ba7 {[%emt 0:01:37]} 12. Be3 {[%emt 0:07:05]} c6 {[%emt 0:05:59]} 13. Bxd4 {[%emt 0:03:51]} exd4 {[%emt 0:00:22]} 14. Nb1 {[%emt 0:00:17]} c5 {[%emt 0:12:03]} 15. Nd2 {[%emt 0:00:52]} Nd7 {[%emt 0:02:35]} 16. Nf4 {[%emt 0:28:55]} Nf8 {[%emt 0:03:56]} 17. Rb1 {[%emt 0:02:30]} Rb8 {[%emt 0:00:49]} 18. b5 {[%emt 0:02:29]} axb5 {[%emt 0:04:36]} 19. cxb5 {[%emt 0:00:24]} Bb6 {[%emt 0:00:26]} 20. Nc4 {[%emt 0:00:32]} Be6 {[%emt 0:00:20]} 21. Nxe6 {[%emt 0:02:23]} fxe6 {[%emt 0:02:50]} 22. f4 {[%emt 0:00:31]} Ba5 {[%emt 0:02:56]} 23. Qg4 {[%emt 0:08:45]} Re7 {[%emt 0:02:55]} 24. Rb2 {[%emt 0:12:03]} Bc3 {[%emt 0:02:44]} 25. Re2 {[%emt 0:01:35]} Nd7 {[%emt 0:06:06]} 26. Nxd6 {[%emt 0:02:18]} Nf6 {[%emt 0:00:15]} 27. Qh4 {[%emt 0:00:07]} Qxd6 {[%emt 0:01:49]} 28. e5 {[%emt 0:00:04]} Qb6 {[%emt 0:00:04]} 29. exf6 {[%emt 0:00:04]} gxf6 {[%emt 0:00:02]} 30. Qxf6 {[%emt 0:00:13]} Rbe8 {[%emt 0:01:20]} 31. f5 {[%emt 0:11:47]} Rf7 {[%emt 0:01:19]} 32. Qg5+ {[%emt 0:00:03]} Rg7 {[%emt 0:00:04]} 33. Qh5 {[%emt 0:00:13]} Rf8 {[%emt 0:00:24]} 34. Rxe6 {[%emt 0:01:09]} Qc7 {[%emt 0:00:08]} 35. g4 {[%emt 0:00:37]} Bd2 {[%emt 0:00:28]} 36. Re8 {[%emt 0:00:33]} Rg5 {[%emt 0:04:46]} 37. Rxf8+ {[%emt 0:00:05]} Kxf8 {[%emt 0:00:01]} 38. Qh6+ {[%emt 0:00:08]} Ke8 {[%emt 0:00:44]} 39. Qe6+ {[%emt 0:00:55]} Kf8 {[%emt 0:00:11]} 40. Qf6+ {[%emt 0:00:10]} Qf7 {[%emt 0:00:35]} 41. Qxf7+ {[%emt 0:00:30]} Kxf7 {[%emt 0:00:01]} 42. Bxb7 {[%emt 0:00:13]} h5 {[%emt 0:00:20]} 43. Bf3 {[%emt 0:00:26]} hxg4 {[%emt 0:00:04]} 44. hxg4 {[%emt 0:00:02]} Kf6 {[%emt 0:00:40]} 45. Kf2 {[%emt 0:00:35]} 1-0

[Event "XVI Memorial Lezcano Montalvo 2024"]
[Site "Gran Canaria"]
[Date "2024.03.27"]
[Round "5.13"]
[White "Bergero, Simone"]
[Black "Loiacono, Leonardo"]
[Result "1/2-1/2"]
[ECO "C02"]
[WhiteElo "2022"]
[BlackElo "2316"]
[Annotator "RC"]
[PlyCount "92"]
[EventDate "2024.03.23"]
[EventType "swiss"]
[EventCountry "ESP"]
[SourceTitle "playchess.com"]
[Source "ChessBase"]
[SourceQuality "1"]
[TimeControl "5400+30"]

1. d4 {[%emt 0:00:01]} e6 {[%emt 0:00:06]} 2. e4 {[%emt 0:00:10]} d5 {[%emt 0:00:56]} 3. e5 {[%emt 0:00:06]} c5 {[%emt 0:00:28]} 4. c3 {[%emt 0:00:04]} Qb6 {[%emt 0:01:18]} 5. Nf3 {[%emt 0:00:06]} Bd7 {[%emt 0:00:45]} 6. Bd3 {[%emt 0:00:21]} Bb5 {[%emt 0:00:09]} 7. O-O {[%emt 0:04:25]} Bxd3 {[%emt 0:00:04]} 8. Qxd3 {[%emt 0:00:04]} Qa6 {[%emt 0:02:03]} 9. Qc2 {[%emt 0:07:30]} Nd7 {[%emt 0:00:59]} 10. Re1 {[%emt 0:21:52]} Rc8 {[%emt 0:01:58]} 11. a4 {[%emt 0:01:58]} cxd4 {[%emt 0:11:20]} 12. Nxd4 {[%emt 0:00:09]} Ne7 {[%emt 0:00:29]} 13. Nb5 {[%emt 0:10:59]} Nc6 {[%emt 0:00:08]} 14. f4 {[%emt 0:01:26]} Bc5+ {[%emt 0:05:58]} 15. Be3 {[%emt 0:00:32]} O-O {[%emt 0:01:02]} 16. Kh1 {[%emt 0:05:24]} Bxe3 {[%emt 0:04:07]} 17. Rxe3 {[%emt 0:00:05]} Nd4 {[%emt 0:00:31]} 18. Qd3 {[%emt 0:00:21]} Nxb5 {[%emt 0:04:32]} 19. Qxb5 {[%emt 0:01:02]} Qb6 {[%emt 0:00:31]} 20. Qxb6 {[%emt 0:04:38]} Nxb6 {[%emt 0:01:02]} 21. Nd2 {[%emt 0:00:06]} Nc4 {[%emt 0:00:22]} 22. Nxc4 {[%emt 0:00:08]} Rxc4 {[%emt 0:00:02]} 23. g3 {[%emt 0:00:05]} Rfc8 {[%emt 0:00:52]} 24. Rd3 {[%emt 0:01:11]} Re4 {[%emt 0:01:49]} 25. Rd2 {[%emt 0:00:06]} Rcc4 {[%emt 0:00:43]} 26. a5 {[%emt 0:00:06]} Ra4 {[%emt 0:00:15]} 27. Rxa4 {[%emt 0:00:10]} Rxa4 {[%emt 0:00:02]} 28. b4 {[%emt 0:00:03]} Ra1+ {[%emt 0:00:10]} 29. Kg2 {[%emt 0:00:05]} Rc1 {[%emt 0:00:04]} 30. Rd3 {[%emt 0:00:13]} Kf8 {[%emt 0:01:06]} 31. Kf3 {[%emt 0:00:14]} Ke7 {[%emt 0:00:56]} 32. Ke3 {[%emt 0:00:07]} Rc2 {[%emt 0:00:43]} 33. h4 {[%emt 0:02:55]} Kd7 {[%emt 0:05:03]} 34. f5 {[%emt 0:07:52]} Kc6 {[%emt 0:01:52]} 35. fxe6 {[%emt 0:01:18]} fxe6 {[%emt 0:00:03]} 36. Kd4 {[%emt 0:00:16]} Kd7 {[%emt 0:10:22]} 37. Rf3 {[%emt 0:03:16]} Ke7 {[%emt 0:00:09]} 38. Re3 {[%emt 0:09:05]} h5 {[%emt 0:02:44]} 39. Kc5 {[%emt 0:01:22]} Rf2 {[%emt 0:02:31]} 40. Kb5 {[%emt 0:01:48]} Kd7 {[%emt 0:04:19]} 41. c4 {[%emt 0:02:40]} dxc4 {[%emt 0:05:49]} 42. Kxc4 {[%emt 0:00:07]} Kc7 {[%emt 0:00:53]} 43. b5 {[%emt 0:01:56]} Ra2 {[%emt 0:08:42]} 44. Kb4 {[%emt 0:00:11]} Rb2+ {[%emt 0:00:03]} 45. Kc4 {[%emt 0:00:06]} Ra2 {[%emt 0:00:04]} 46. Kb4 {[%emt 0:00:03]} Rb2+ {[%emt 0:00:03]} 1/2-1/2

[Event "XVI Memorial Lezcano Montalvo 2024"]
[Site "Gran Canaria"]
[Date "2024.03.27"]
[Round "5.14"]
[White "Pleschke, Julius Jonas"]
[Black "Van Zyl-Rudd, Jack"]
[Result "1/2-1/2"]
[ECO "E04"]
[WhiteElo "1993"]
[BlackElo "2264"]
[Annotator "RC"]
[PlyCount "88"]
[EventDate "2024.03.23"]
[EventType "swiss"]
[EventCountry "ESP"]
[SourceTitle "playchess.com"]
[Source "ChessBase"]
[SourceQuality "1"]
[TimeControl "5400+30"]

1. Nf3 {[%emt 0:00:06]} d5 {[%emt 0:11:57]} 2. d4 {[%emt 0:00:11]} Nf6 {[%emt 0:00:08]} 3. c4 {[%emt 0:00:06]} e6 {[%emt 0:00:03]} 4. g3 {[%emt 0:00:05]} dxc4 {[%emt 0:00:04]} 5. Bg2 {[%emt 0:02:43]} Bb4+ {[%emt 0:02:04]} 6. Bd2 {[%emt 0:00:43]} a5 {[%emt 0:00:04]} 7. a3 {[%emt 0:09:10]} Bd6 {[%emt 0:00:09]} 8. Qc2 {[%emt 0:01:04]} O-O {[%emt 0:00:40]} 9. Qxc4 {[%emt 0:01:56]} Nc6 {[%emt 0:00:03]} 10. O-O {[%emt 0:01:33]} e5 {[%emt 0:00:40]} 11. dxe5 {[%emt 0:03:58]} Nxe5 {[%emt 0:00:02]} 12. Nxe5 {[%emt 0:01:40]} Bxe5 {[%emt 0:00:01]} 13. Bc3 {[%emt 0:00:37]} Qe7 {[%emt 0:03:19]} 14. Qb3 {[%emt 0:19:27]} c6 {[%emt 0:06:38]} 15. Qc2 {[%emt 0:01:26]} Re8 {[%emt 0:04:15]} 16. e4 {[%emt 0:17:26]} h5 {[%emt 0:11:39]} 17. Nd2 {[%emt 0:06:28]} h4 {[%emt 0:08:44]} 18. Bxe5 {[%emt 0:01:34]} Qxe5 {[%emt 0:00:02]} 19. Nf3 {[%emt 0:00:37]} Qxe4 {[%emt 0:00:06]} 20. Qxe4 {[%emt 0:00:16]} Rxe4 {[%emt 0:00:15]} 21. Nxh4 {[%emt 0:00:36]} Re2 {[%emt 0:00:06]} 22. b4 {[%emt 0:01:24]} Be6 {[%emt 0:07:39]} 23. bxa5 {[%emt 0:10:02]} Rxa5 {[%emt 0:00:18]} 24. Rab1 {[%emt 0:00:39]} Ra7 {[%emt 0:43:34]} 25. Nf3 {[%emt 0:09:28]} Ra2 {[%emt 0:00:00]} 26. Ng5 {[%emt 0:01:40]} Bd5 {[%emt 0:00:00]} 27. Bxd5 {[%emt 0:00:37]} Nxd5 {[%emt 0:00:00]} 28. Rfe1 {[%emt 0:01:45]} g6 {[%emt 0:00:00]} 29. Re8+ {[%emt 0:01:01]} Kg7 {[%emt 0:00:00]} 30. Rb8 {[%emt 0:00:18]} b5 {[%emt 0:00:00]} 31. Rc1 {[%emt 0:01:31]} Rc7 {[%emt 0:00:00]} 32. Ne4 {[%emt 0:00:23]} Re7 {[%emt 0:00:00]} 33. Nc3 {[%emt 0:05:20]} Rxa3 {[%emt 0:00:00]} 34. Nxd5 {[%emt 0:00:12]} cxd5 {[%emt 0:00:00]} 35. Rxb5 {[%emt 0:00:01]} Rd7 {[%emt 0:00:00]} 36. Rd1 {[%emt 0:00:56]} d4 {[%emt 0:00:00]} 37. Kg2 {[%emt 0:00:42]} d3 {[%emt 0:00:00]} 38. Rd2 {[%emt 0:00:53]} Rc3 {[%emt 0:00:00]} 39. Rbb2 {[%emt 0:00:24]} Rd6 {[%emt 0:00:00]} 40. Kf3 {[%emt 0:00:40]} Re6 {[%emt 0:00:00]} 41. Rb1 {[%emt 0:00:31]} Rf6+ {[%emt 0:00:00]} 42. Ke3 {[%emt 0:00:40]} Re6+ {[%emt 0:00:00]} 43. Kf3 {[%emt 0:00:02]} Rf6+ {[%emt 0:06:59]} 44. Ke3 {[%emt 0:00:09]} Re6+ {[%emt 0:03:01]} 1/2-1/2

[Event "XVI Memorial Lezcano Montalvo 2024"]
[Site "Gran Canaria"]
[Date "2024.03.27"]
[Round "5.15"]
[White "Perez Bolanos, David"]
[Black "Garcia Padron, Jose"]
[Result "0-1"]
[ECO "D28"]
[WhiteElo "2053"]
[BlackElo "2385"]
[Annotator "RC"]
[PlyCount "126"]
[EventDate "2024.03.23"]
[EventType "swiss"]
[EventCountry "ESP"]
[SourceTitle "playchess.com"]
[Source "ChessBase"]
[SourceQuality "1"]
[TimeControl "5400+30"]

1. d4 {[%emt 0:00:22]} d5 {[%emt 0:03:44]} 2. c4 {[%emt 0:00:13]} dxc4 {[%emt 0:00:05]} 3. Nf3 {[%emt 0:00:08]} Nf6 {[%emt 0:00:04]} 4. e3 {[%emt 0:00:14]} e6 {[%emt 0:00:05]} 5. Bxc4 {[%emt 0:00:12]} c5 {[%emt 0:00:05]} 6. Nc3 {[%emt 0:01:15]} a6 {[%emt 0:00:57]} 7. O-O {[%emt 0:02:33]} Nc6 {[%emt 0:01:07]} 8. Qe2 {[%emt 0:03:35]} b5 {[%emt 0:01:13]} 9. Bb3 {[%emt 0:00:25]} Bb7 {[%emt 0:10:11]} 10. Rd1 {[%emt 0:02:21]} Qc7 {[%emt 0:00:50]} 11. d5 {[%emt 0:02:00]} exd5 {[%emt 0:00:06]} 12. Nxd5 {[%emt 0:00:21]} Nxd5 {[%emt 0:00:05]} 13. Bxd5 {[%emt 0:00:15]} Be7 {[%emt 0:00:09]} 14. b3 {[%emt 0:02:47]} O-O {[%emt 0:02:01]} 15. Bb2 {[%emt 0:01:16]} Rad8 {[%emt 0:00:32]} 16. e4 {[%emt 0:05:04]} Nb4 {[%emt 0:00:38]} 17. Be5 {[%emt 0:02:50]} Qb6 {[%emt 0:00:37]} 18. Bxb7 {[%emt 0:10:34]} Qxb7 {[%emt 0:00:08]} 19. Bc3 {[%emt 0:00:43]} Nc6 {[%emt 0:02:55]} 20. Qb2 {[%emt 0:02:26]} f6 {[%emt 0:02:06]} 21. Qe2 {[%emt 0:06:21]} Rfe8 {[%emt 0:01:01]} 22. Rxd8 {[%emt 0:00:39]} Nxd8 {[%emt 0:02:02]} 23. Rd1 {[%emt 0:04:56]} Bf8 {[%emt 0:05:17]} 24. e5 {[%emt 0:05:38]} Nf7 {[%emt 0:17:07]} 25. Rd3 {[%emt 0:07:59]} Qe7 {[%emt 0:32:02]} 26. Re3 {[%emt 0:05:09]} f5 {[%emt 0:00:06]} 27. a4 {[%emt 0:08:27]} bxa4 {[%emt 0:00:09]} 28. bxa4 {[%emt 0:00:22]} Qe6 {[%emt 0:00:06]} 29. Nd2 {[%emt 0:00:47]} g6 {[%emt 0:02:28]} 30. Qc4 {[%emt 0:02:20]} Bh6 {[%emt 0:02:55]} 31. Re2 {[%emt 0:02:24]} Bg7 {[%emt 0:08:44]} 32. Qxe6 {[%emt 0:03:00]} Rxe6 {[%emt 0:00:01]} 33. Nc4 {[%emt 0:00:22]} g5 {[%emt 0:01:32]} 34. g3 {[%emt 0:00:06]} g4 {[%emt 0:00:09]} 35. Kg2 {[%emt 0:02:13]} h5 {[%emt 0:01:20]} 36. a5 {[%emt 0:06:57]} Ng5 {[%emt 0:02:14]} 37. Nd6 {[%emt 0:01:29]} Nf3 {[%emt 0:00:52]} 38. Nc4 {[%emt 0:04:28]} Kf7 {[%emt 0:00:25]} 39. h4 {[%emt 0:00:23]} Ke7 {[%emt 0:00:54]} 40. Kf1 {[%emt 0:02:34]} Kd7 {[%emt 0:00:28]} 41. Re3 {[%emt 0:01:57]} Kc6 {[%emt 0:00:28]} 42. Ke2 {[%emt 0:00:16]} Re8 {[%emt 0:01:48]} 43. Nd6 {[%emt 0:00:41]} Re6 {[%emt 0:00:23]} 44. Nc4 {[%emt 0:00:31]} Kb5 {[%emt 0:01:13]} 45. Nd6+ {[%emt 0:00:16]} Kc6 {[%emt 0:00:16]} 46. Nc4 {[%emt 0:00:53]} Bh6 {[%emt 0:00:21]} 47. Rd3 {[%emt 0:00:11]} Kb5 {[%emt 0:00:23]} 48. Nd6+ {[%emt 0:00:25]} Ka4 {[%emt 0:00:27]} 49. Nf7 {[%emt 0:00:42]} Bg7 {[%emt 0:00:21]} 50. Ng5 {[%emt 0:02:20]} Re7 {[%emt 0:00:40]} 51. Nxf3 {[%emt 0:00:08]} gxf3+ {[%emt 0:00:05]} 52. Kxf3 {[%emt 0:00:37]} Bxe5 {[%emt 0:00:02]} 53. Re3 {[%emt 0:00:11]} Bd6 {[%emt 0:00:03]} 54. Rd3 {[%emt 0:00:04]} Re6 {[%emt 0:00:11]} 55. Rd5 {[%emt 0:00:57]} Kb3 {[%emt 0:00:05]} 56. Bd2 {[%emt 0:00:07]} c4 {[%emt 0:00:54]} 57. Rxf5 {[%emt 0:00:11]} Re5 {[%emt 0:00:39]} 58. Rf6 {[%emt 0:00:34]} Rd5 {[%emt 0:00:29]} 59. Bh6 {[%emt 0:01:09]} c3 {[%emt 0:00:41]} 60. Ke4 {[%emt 0:00:35]} Kc4 {[%emt 0:01:30]} 61. f4 {[%emt 0:01:12]} Rd4+ {[%emt 0:00:47]} 62. Kf3 {[%emt 0:00:21]} c2 {[%emt 0:01:27]} 63. f5 {[%emt 0:00:05]} Kd5 {[%emt 0:01:17]} 0-1

[Event "XVI Memorial Lezcano Montalvo 2024"]
[Site "Gran Canaria"]
[Date "2024.03.27"]
[Round "5.16"]
[White "Hernando Rodrigo, Jose Maria"]
[Black "Sosa Suarez, Carla Cristina"]
[Result "1-0"]
[ECO "A21"]
[WhiteElo "2257"]
[BlackElo "1980"]
[Annotator "RC"]
[PlyCount "69"]
[EventDate "2024.03.23"]
[EventType "swiss"]
[EventCountry "ESP"]
[SourceTitle "playchess.com"]
[Source "ChessBase"]
[SourceQuality "1"]
[TimeControl "5400+30"]

1. c4 {[%emt 0:00:03]} d6 {[%emt 0:01:41]} 2. Nc3 {[%emt 0:01:48]} e5 {[%emt 0:00:32]} 3. Nf3 {[%emt 0:04:23]} f5 {[%emt 0:01:46]} 4. g3 {[%emt 0:00:26]} Nf6 {[%emt 0:02:58]} 5. Bg2 {[%emt 0:00:57]} Be7 {[%emt 0:00:38]} 6. O-O {[%emt 0:00:35]} O-O {[%emt 0:00:19]} 7. b4 {[%emt 0:01:17]} a5 {[%emt 0:04:55]} 8. bxa5 {[%emt 0:06:06]} Rxa5 {[%emt 0:01:38]} 9. a4 {[%emt 0:00:13]} Nbd7 {[%emt 0:02:42]} 10. d4 {[%emt 0:07:21]} exd4 {[%emt 0:03:34]} 11. Nxd4 {[%emt 0:07:40]} Nc5 {[%emt 0:00:44]} 12. Nb3 {[%emt 0:05:07]} Ra6 {[%emt 0:06:28]} 13. Nxc5 {[%emt 0:06:26]} dxc5 {[%emt 0:03:46]} 14. Qc2 {[%emt 0:03:48]} c6 {[%emt 0:03:38]} 15. Bf4 {[%emt 0:06:36]} Qe8 {[%emt 0:05:24]} 16. e4 {[%emt 0:10:17]} fxe4 {[%emt 0:04:06]} 17. Nxe4 {[%emt 0:00:06]} Nxe4 {[%emt 0:05:06]} 18. Bxe4 {[%emt 0:00:08]} Qh5 {[%emt 0:00:58]} 19. Rfe1 {[%emt 0:03:15]} Bf6 {[%emt 0:03:04]} 20. Bd6 {[%emt 0:07:27]} Rd8 {[%emt 0:03:58]} 21. Bc7 {[%emt 0:00:38]} Rf8 {[%emt 0:00:26]} 22. Bd6 {[%emt 0:01:51]} Rd8 {[%emt 0:00:13]} 23. Rad1 {[%emt 0:00:29]} Bg4 {[%emt 0:05:40]} 24. Rd2 {[%emt 0:00:11]} Raa8 {[%emt 0:01:06]} 25. Qb3 {[%emt 0:01:19]} Re8 {[%emt 0:04:53]} 26. Qxb7 {[%emt 0:04:13]} Bc3 {[%emt 0:07:23]} 27. Bf4 {[%emt 0:08:49]} Bxd2 {[%emt 0:04:47]} 28. Bxd2 {[%emt 0:00:05]} Rab8 {[%emt 0:09:47]} 29. Qxc6 {[%emt 0:04:57]} Kh8 {[%emt 0:05:46]} 30. a5 {[%emt 0:00:07]} Re6 {[%emt 0:01:09]} 31. Qa4 {[%emt 0:03:58]} Rbe8 {[%emt 0:01:00]} 32. a6 {[%emt 0:00:17]} Bf3 {[%emt 0:04:42]} 33. Bxf3 {[%emt 0:00:35]} Rxe1+ {[%emt 0:00:48]} 34. Bxe1 {[%emt 0:00:08]} Rxe1+ {[%emt 0:01:22]} 35. Kg2 {[%emt 0:00:06]} 1-0